[Event "4th Tata Steel India Rapid Women 2022"]
[Site "Kolkota"]
[Date "2022.11.30"]
[Round "5.5"]
[White "Harika, Dronavalli"]
[Black "Dzagnidze, Nana"]
[Result "1/2-1/2"]
[ECO "A34"]
[WhiteElo "2507"]
[BlackElo "2517"]
[Annotator "TA"]
[PlyCount "84"]
[EventDate "2022.11.29"]
[EventType "tourn"]
[EventCountry "IND"]
[SourceTitle "playchess.com"]
[Source "ChessBase"]
[SourceQuality "1"]
[TimeControl "900+10"]

{[%evp 12,84,0,0,0,0,34,39,90,74,65,72,73,14,32,28,27,34,42,41,53,46,46,46,46,0,37,0,38,41,44,43,36,43,39,39,37,41,35,41,60,29,29,20,29,6,35,38,56,58,61,0,8,0,0,0,77,0,-10,0,77,0,0,0,73,59,148,142,120,0,0,0,105,0,0]} 1. c4 {[%emt 0:00:03]} c5 {[%emt 0:00:06]} 2. Nf3 {[%emt 0:00:18]} Nf6 {[%emt 0:00:03][%cal Bg8f6,Bf6d5,Bd5b4,Bb4d3][%mdl 32]} 3. Nc3 {[%emt 0:00:05]} d5 {[%emt 0:00:14]} 4. cxd5 {[%emt 0:00:04]} Nxd5 {[%emt 0:00:01]} 5. e4 {[%emt 0:00:11]} Nb4 {[%emt 0:00:53]} 6. Bc4 {[%emt 0:00:36]} Nd3+ {[%emt 0:00:29]} 7. Ke2 {[%emt 0:00:09]} Nxc1+ {[%emt 0:00:43] A34: Symmetrical English: 2 Nc3, lines with ...d5.} 8. Rxc1 {[%emt 0:00:19]} Nc6 {[%emt 0:00:01] Inhibits d4.} 9. Bb5 {[%emt 0:02:24]} Bg4 {[%emt 0:00:44]} (9... g6 $14) 10. Bxc6+ {[%emt 0:02:42]} bxc6 {[%emt 0:00:02] [#]} 11. Na4 $146 {[%emt 0:01:28]} ({Predecessor:} 11. Qa4 Qd6 12. Rhd1 e5 13. Nd5 Rb8 14. Ne3 Bxf3+ 15. gxf3 Qd7 16. Rc3 Rxb2 17. Rd3 {½-½ (65) Khenkin,I (2669)-Bok,B (2512) Leiden 2012}) 11... e6 {[%emt 0:00:32]} 12. d3 {[%emt 0:00:07]} (12. Nxc5 $16 {And now Qa4 would win.} Bxc5 13. Rxc5) 12... Rb8 {[%emt 0:03:04]} 13. b3 {[%emt 0:00:47]} ({Much worse is} 13. Nxc5 Bxf3+ 14. gxf3 Rxb2+ 15. Rc2 Bxc5 $15) 13... Rb5 {[%emt 0:00:23]} 14. Rc4 {[%emt 0:01:33]} (14. h3 {simplifies} Bxf3+ 15. Kxf3 Qf6+ 16. Ke2) 14... Be7 {[%emt 0:06:16]} 15. Qc1 {[%emt 0:02:55][%cal Ra4c5]} (15. h3 {simplifies} Bxf3+ 16. gxf3 O-O 17. Qd2) 15... Qd6 {[%emt 0:00:26]} 16. h3 {[%emt 0:01:33]} (16. Qe3 {is more complex.} Bf6 17. Nxc5 O-O 18. d4) 16... Bxf3+ {[%emt 0:00:05]} 17. gxf3 {[%emt 0:00:02]} O-O {[%emt 0:00:06]} 18. Qe3 {[%emt 0:00:20]} (18. f4 $1 $14 {might be stronger.}) 18... Rd8 {[%emt 0:00:22]} 19. Rg1 {[%emt 0:01:13]} (19. e5 {simplifies} Qc7 20. Rhc1 Ra5 21. f4) 19... Rb4 {[%emt 0:00:37]} 20. Rgc1 {[%emt 0:00:25][%cal Ra4c5]} Rxc4 {[%emt 0:01:01]} 21. Rxc4 {[%emt 0:00:30][%cal Ra4c5]} Bg5 {[%emt 0:00:12] [#]} 22. e5 $1 {[%emt 0:00:01]} Bxe3 {[%emt 0:00:46]} 23. exd6 {[%emt 0:00:01]} Bd4 {[%emt 0:01:06]} 24. Nxc5 {[%emt 0:00:02]} Bxc5 {[%emt 0:00:13]} 25. Rxc5 {[%emt 0:00:02]} Rxd6 $14 {[%emt 0:00:00][%mdl 4096] Endgame KR-KR} 26. Ke3 {[%emt 0:00:50]} Kf8 {[%emt 0:00:11]} 27. Ra5 {[%emt 0:00:00]} Rd7 {[%emt 0:00:05]} 28. Ra6 {[%emt 0:00:01]} Rc7 {[%emt 0:00:27]} 29. Kd4 {[%emt 0:00:02]} c5+ {[%emt 0:00:31]} 30. Kc4 {[%emt 0:00:04]} Ke7 $1 {[%emt 0:00:01]} 31. f4 {[%emt 0:00:24] White is more active.} (31. Ra5 $14) 31... Kf6 $11 {[%emt 0:00:04]} 32. Kb5 {[%emt 0:00:53]} Kf5 {[%emt 0:00:05]} 33. Ra4 {[%emt 0:00:01]} g6 {[%emt 0:00:34] [#]} (33... h5 $11) 34. Rc4 {[%emt 0:00:08]} (34. d4 $1 $16 {[%cal Rd4c5]} cxd4 35. Rxd4) 34... Rd7 {[%emt 0:00:01]} 35. Ra4 {[%emt 0:00:13]} ({Better is} 35. a4 $11) 35... Rc7 $16 {[%emt 0:00:18] [#]} 36. Rc4 {[%emt 0:00:11]} (36. d4 $1 $16 {[%cal Rd4c5]} cxd4 37. Rxd4) 36... Rd7 $11 {[%emt 0:00:11]} 37. Kxc5 {[%emt 0:00:24]} Rxd3 {[%emt 0:00:03]} (37... Rd5+ $11 38. Kc6 h5) 38. Ra4 $16 {[%emt 0:00:01]} Rd7 {[%emt 0:00:17]} ({Black should play} 38... Rxh3 $14 39. Rxa7 Kf6) 39. Kc6 {[%emt 0:00:02]} Re7 {[%emt 0:00:03]} 40. Kd6 {[%emt 0:00:03] Prevents e5.} Rb7 {[%emt 0:00:01]} 41. Kc6 {[%emt 0:00:23]} Re7 42. Kd6 {[%emt 0:00:24] Against h5} (42. Rc4 $16) 42... Rb7 {[%emt 0:00:03] Weighted Error Value: White=0.21 (precise) /Black=0.17 (very precise)} 1/2-1/2

[Event "4th Tata Steel India Rapid Women 2022"]
[Site "Kolkota"]
[Date "2022.11.30"]
[Round "6.1"]
[White "Koneru, Humpy"]
[Black "Dzagnidze, Nana"]
[Result "1/2-1/2"]
[ECO "E15"]
[WhiteElo "2574"]
[BlackElo "2517"]
[Annotator "TA"]
[PlyCount "65"]
[EventDate "2022.11.29"]
[EventType "tourn"]
[EventCountry "IND"]
[SourceTitle "playchess.com"]
[Source "ChessBase"]
[SourceQuality "1"]
[TimeControl "900+10"]

{[%evp 15,65,16,5,9,49,23,44,44,34,25,81,78,147,146,162,148,148,129,147,149,139,72,144,74,167,162,143,132,128,132,119,134,202,190,293,299,300,301,301,295,281,286,291,100,104,0,278,0,87,0,278,0]} 1. d4 {[%emt 0:00:02]} Nf6 {[%emt 0:00:02]} 2. c4 {[%emt 0:00:04]} e6 {[%emt 0:00:02]} 3. Nf3 {[%emt 0:00:05]} b6 {[%emt 0:00:17]} 4. g3 {[%emt 0:00:17]} Ba6 {[%emt 0:00:03]} 5. b3 {[%emt 0:00:14]} Bb4+ {[%emt 0:00:25]} 6. Bd2 {[%emt 0:00:12]} Be7 {[%emt 0:00:04]} 7. Nc3 {[%emt 0:00:17]} c6 {[%emt 0:02:58][%cal Bc7c6,Bc6c5][%mdl 32] 7...d5 is the modern continuation.} 8. e4 {[%emt 0:01:36]} d5 {[%emt 0:00:02]} 9. Bd3 {[%emt 0:02:39] E15: Queen's Indian: 4 g3 sidelines, 4 g3 Ba6 and 4 g3 Bb7 early deviations.} c5 {[%emt 0:03:37]} 10. exd5 {[%emt 0:01:16]} exd5 {[%emt 0:00:09]} 11. Nxd5 {[%emt 0:06:09] White is slightly better.} Nxd5 {[%emt 0:00:26]} 12. Be4 {[%emt 0:00:03][%mdl 64] Pin} Nc7 {[%emt 0:00:52]} 13. Bf4 $1 $16 {[%emt 0:01:34]} Bd6 {[%emt 0:00:21]} 14. dxc5 $1 {[%emt 0:01:21]} Bxf4 {[%emt 0:00:07]} 15. Qxd8+ {[%emt 0:00:29]} Kxd8 {[%emt 0:00:02] [#]} 16. gxf4 $146 {[%emt 0:00:04]} ({Predecessor:} 16. Rd1+ Kc8 17. Bxa8 Re8+ 18. Kf1 Nxa8 19. gxf4 bxc5 20. Rd5 Nd7 21. Kg2 Bb7 22. Rd2 {0-1 (57) Furman,S (1720)-Bednar,J (2047) Piestany 2021}) 16... Kc8 {[%emt 0:06:25] Hoping for ...Re8.} 17. Bxa8 {[%emt 0:00:44]} Nxa8 {[%emt 0:00:01]} 18. Ne5 {[%emt 0:00:38]} (18. Rg1 $142) 18... bxc5 {[%emt 0:00:09]} (18... Rf8 $142) 19. O-O-O {[%emt 0:00:17]} (19. Nxf7 $6 Rf8 20. Nd6+ Kc7 $14) ({Better is} 19. Rg1 $1 {[%cal Rg1g7]}) 19... Nb6 {[%emt 0:00:19]} (19... Rf8 $16) 20. Rhg1 $18 {[%emt 0:00:15][%mdl 1024] White has strong compensation.} g6 {[%emt 0:00:25]} 21. f5 {[%emt 0:00:03]} Rf8 {[%emt 0:00:24] [#]} 22. Rd6 $1 {[%emt 0:00:15]} Bb7 {[%emt 0:00:10] [#]} 23. Rf6 $1 {[%emt 0:00:08] White has more active pieces.} N8d7 {[%emt 0:01:13]} (23... Be4 $16) 24. Rxf7 {[%emt 0:00:02]} Re8 {[%emt 0:00:13]} (24... Be4 {was necessary.} 25. Rxf8+ (25. fxg6 Bxg6 26. Rxf8+ Nxf8 $18) 25... Nxf8) 25. Nxd7 {[%emt 0:00:07]} Nxd7 {[%emt 0:00:01]} 26. Rxh7 {[%emt 0:00:16]} ({Not} 26. fxg6 hxg6 27. f4 (27. Rxg6 Ne5 $15) 27... Be4 $16) 26... gxf5 {[%emt 0:00:03]} 27. Rgg7 {[%emt 0:00:16] Prevents f4.} Bc6 {[%emt 0:00:02]} 28. Re7 {[%emt 0:00:12] Inhibits Re1+.} Rg8 {[%emt 0:00:05]} 29. Rhg7 {[%emt 0:00:11]} (29. h4 $18 {is more deadly.}) 29... Rh8 $16 {[%emt 0:00:01]} 30. Rh7 $2 {[%emt 0:00:05]} (30. Re6 $16 Kc7 31. Rf7) 30... Rg8 $1 $18 {[%emt 0:00:01]} 31. Rhg7 $2 {[%emt 0:00:12]} (31. h4 $18 {and White stays clearly on top.}) 31... Rh8 $16 {[%emt 0:00:01]} 32. Rh7 $2 {[%emt 0:00:06]} (32. Rg6 $16 Kc7 33. Ree6) 32... Rg8 $1 $18 {[%emt 0:00:01]} 33. Rhg7 $2 {[%emt 0:00:06] Weighted Error Value: White=0.38/Black=0.21 (precise)} ({White should play} 33. h4 $18) 1/2-1/2

[Event "4th Tata Steel India Rapid Women 2022"]
[Site "Kolkota"]
[Date "2022.11.30"]
[Round "6.2"]
[White "Vantika Agrawal"]
[Black "Harika, Dronavalli"]
[Result "1/2-1/2"]
[ECO "E11"]
[WhiteElo "2362"]
[BlackElo "2507"]
[Annotator "TA"]
[PlyCount "84"]
[EventDate "2022.11.29"]
[EventType "tourn"]
[EventCountry "IND"]
[SourceTitle "playchess.com"]
[Source "ChessBase"]
[SourceQuality "1"]
[TimeControl "900+10"]

{[%evp 11,84,17,21,8,8,1,81,94,100,95,91,102,107,93,83,88,84,86,85,65,100,101,92,91,101,54,120,117,110,67,48,76,71,50,54,19,12,4,6,0,0,0,16,10,27,23,31,17,18,0,2,0,0,0,0,0,0,0,0,0,0,0,0,0,0,0,0,3,2,0,0,0,9,0,10]} 1. d4 {[%emt 0:00:03]} d5 {[%emt 0:00:04]} 2. c4 {[%emt 0:00:03]} e6 {[%emt 0:00:02]} 3. Nf3 {[%emt 0:00:03]} Nf6 {[%emt 0:00:08]} 4. g3 {[%emt 0:00:03]} Bb4+ {[%emt 0:00:03]} 5. Bd2 {[%emt 0:00:06]} a5 {[%emt 0:00:04]} 6. Bg2 {[%emt 0:00:05]} O-O {[%emt 0:00:04]} 7. Qc1 {[%emt 0:00:10] E11: Bogo-Indian.} Nbd7 {[%emt 0:03:33]} 8. O-O {[%emt 0:00:12]} dxc4 {[%emt 0:01:34] [#]} (8... c6 $11 {keeps the balance.}) 9. Bxb4 $1 $16 {[%emt 0:00:18] White is better.} axb4 {[%emt 0:00:08]} 10. Qxc4 {[%emt 0:00:02] [#]} Nd5 $146 {[%emt 0:01:16]} ({Predecessor:} 10... Ra4 11. b3 Nb6 12. Qc5 Nfd7 13. Qh5 Ra6 14. e4 Nf6 15. Qh4 Nfd7 16. Qh5 Nf6 {0-1 (55) Fiorenza,B (1821)-Roman,R (2078) Buenos Aires 2022}) 11. e4 {[%emt 0:00:31] Prevents b6.} b5 {[%emt 0:00:11]} 12. Qc2 {[%emt 0:03:04]} ({And not} 12. Qxb5 Ba6 13. Qc6 Ne7 $17) 12... N5b6 {[%emt 0:01:10]} 13. Nbd2 {[%emt 0:00:34]} Bb7 {[%emt 0:00:03]} 14. Rfc1 {[%emt 0:00:40]} Rc8 {[%emt 0:02:08]} 15. Qd3 {[%emt 0:01:29]} Ba6 {[%emt 0:03:17]} 16. a3 {[%emt 0:02:50]} bxa3 {[%emt 0:00:00]} 17. Rxa3 {[%emt 0:01:10]} Ra8 {[%emt 0:00:00]} 18. Qc2 {[%emt 0:00:57] White is much more active.} (18. Raa1 $16) 18... b4 {[%emt 0:00:35]} (18... Bb7 $1 $14) 19. Raa1 {[%emt 0:00:40]} Bb7 {[%emt 0:00:03]} 20. Qb3 {[%emt 0:00:25]} (20. Qxc7 $2 {perishes.} Qxc7 21. Rxc7 Rxa1+ $19) 20... Rxa1 {[%emt 0:00:39]} 21. Rxa1 {[%emt 0:00:02]} Nf6 {[%emt 0:00:47]} 22. Re1 {[%emt 0:01:37]} Qe7 {[%emt 0:00:00]} 23. e5 {[%emt 0:00:51] Inhibits c5.} Nfd7 {[%emt 0:00:00]} 24. Rc1 {[%emt 0:00:30]} Bd5 {[%emt 0:00:00]} 25. Qd3 {[%emt 0:00:27]} c5 {[%emt 0:00:26]} 26. dxc5 {[%emt 0:00:16]} Nxc5 {[%emt 0:00:05]} 27. Qb5 {[%emt 0:00:17][%csl LRb4,LRb6,LRc5]} Ncd7 {[%emt 0:00:37]} 28. Nd4 {[%emt 0:00:15]} Rb8 {[%emt 0:01:45][%cal Ob6c4]} 29. Bxd5 {[%emt 0:01:25]} Nxd5 {[%emt 0:00:01] The position is equal.} 30. Qe2 {[%emt 0:00:15] [#] Strongly threatening Nc6.} (30. Qxb8+ $5 Nxb8 31. Rc8+ Qf8 32. Rxf8+ Kxf8 33. Ne4 $14) 30... Qf8 {[%emt 0:00:17]} 31. Nc6 {[%emt 0:00:42]} Rc8 {[%emt 0:00:16] ...Nb8 is the strong threat.} 32. Nf3 {[%emt 0:00:13][%cal Bd2f3,Bf3d4,Bd4c6][%mdl 32]} Nb8 {[%emt 0:00:34]} 33. Nfd4 {[%emt 0:00:08]} Qe8 {[%emt 0:00:17][%cal Rb8c6]} 34. Qb5 {[%emt 0:00:11]} h6 {[%emt 0:00:23]} 35. Rc4 {[%emt 0:00:11]} Kh7 {[%emt 0:00:15]} 36. Rc2 {[%emt 0:00:12]} Nxc6 {[%emt 0:00:02]} 37. Rxc6 {[%emt 0:00:06]} Rxc6 {[%emt 0:00:04]} 38. Nxc6 $11 {[%emt 0:00:04] KQN-KQN} Kh8 {[%emt 0:00:26]} 39. Qb7 {[%emt 0:00:08]} Qf8 {[%emt 0:00:05]} 40. Qb5 {[%emt 0:00:18]} Kg8 {[%emt 0:00:05]} 41. h4 {[%emt 0:00:04]} h5 {[%emt 0:00:15]} 42. Kh2 {[%emt 0:00:20]} g6 {[%emt 0:00:14] Weighted Error Value: White=0.08 (flawless) /Black=0.08 (flawless)} 1/2-1/2

[Event "4th Tata Steel India Rapid Women 2022"]
[Site "Kolkota"]
[Date "2022.11.30"]
[Round "6.3"]
[White "Muzychuk, Anna"]
[Black "Ushenina, Anna"]
[Result "1/2-1/2"]
[ECO "C43"]
[WhiteElo "2525"]
[BlackElo "2454"]
[Annotator "TA"]
[PlyCount "80"]
[EventDate "2022.11.29"]
[EventType "tourn"]
[EventCountry "IND"]
[SourceTitle "playchess.com"]
[Source "ChessBase"]
[SourceQuality "1"]
[TimeControl "900+10"]

{[%evp 9,80,3,15,10,1,9,1,0,7,12,33,31,41,35,36,39,48,57,52,-39,-22,-32,-14,-65,40,40,36,33,27,46,31,42,61,63,51,-47,66,71,83,54,74,53,70,0,52,59,52,54,71,57,64,50,43,32,22,26,24,31,1316,1308,1300,1270,1224,234,215,53,53,31,31,19,12,0,0]} 1. e4 {[%emt 0:00:20]} e5 {[%emt 0:00:07]} 2. Nf3 {[%emt 0:00:03]} Nf6 {[%emt 0:00:02]} 3. d4 {[%emt 0:00:08]} Nxe4 {[%emt 0:00:06]} 4. dxe5 {[%emt 0:00:06]} d5 {[%emt 0:00:11]} 5. Nbd2 {[%emt 0:00:05][%cal Bb1d2,Bd2b3,Bb3c1][%mdl 32]} Qd7 {[%emt 0:00:01]} 6. Bd3 {[%emt 0:00:07] C43: Petroff Defence: 3 d4.} Nc5 {[%emt 0:00:05]} 7. Be2 {[%emt 0:00:01]} Be7 {[%emt 0:00:18] [#]} 8. O-O $146 {[%emt 0:00:09]} ({Predecessor:} 8. Nd4 O-O 9. O-O Nc6 10. N2f3 Nxd4 11. Nxd4 c6 12. Bf4 Qd8 13. c3 f6 14. exf6 Bxf6 15. Be3 Ne6 16. Nxe6 Bxe6 17. Bd3 Qd6 18. Re1 Bf7 19. Qc2 h6 20. Qd2 {½-½ (20) Anderskewitz,R (2325)-Nowak,A (2260) LSS email 2019}) 8... O-O {[%emt 0:00:33]} 9. c3 {[%emt 0:02:04]} Nc6 {[%emt 0:00:46]} (9... Ne6 {keeps more tension.} 10. Nd4 Nf4 11. Bb5 c6) 10. Nb3 {[%emt 0:00:23]} Ne6 {[%emt 0:01:02]} 11. Re1 {[%emt 0:00:09]} Rd8 {[%emt 0:05:22]} 12. Be3 {[%emt 0:00:23]} a5 {[%emt 0:00:49][%cal Ba7a5,Ba5a4,Ba4a3][%mdl 32]} 13. Bb5 {[%emt 0:01:48]} Qe8 {[%emt 0:00:01]} 14. Qc2 {[%emt 0:00:13]} (14. a4 $14) 14... a4 $15 {[%emt 0:00:49]} 15. Nc1 {[%emt 0:01:54]} (15. Bxc6 {is more complex.} bxc6 16. Nbd4 c5 17. Nxe6 Bxe6 18. Ng5) 15... a3 {[%emt 0:00:42][%cal Oc6b4]} 16. b3 {[%emt 0:00:25]} (16. Ne2 $11) 16... Bd7 {[%emt 0:02:50]} (16... d4 $1 $15 17. cxd4 Ncxd4 18. Nxd4 Nxd4 19. Bxd4 Qxb5) 17. Bd3 $14 {[%emt 0:00:08]} g6 {[%emt 0:00:25]} 18. Ne2 {[%emt 0:00:15]} Bf8 {[%emt 0:00:10]} 19. Nf4 {[%emt 0:01:54]} Nxf4 {[%emt 0:00:12]} 20. Bxf4 {[%emt 0:00:01]} Bg7 {[%emt 0:01:03]} 21. Bg5 {[%emt 0:01:24]} Rdc8 {[%emt 0:00:12]} 22. Bf6 {[%emt 0:00:03]} (22. Qd2 $14) 22... Nd8 {[%emt 0:00:45]} (22... Bxf6 $1 $15 23. exf6 Qd8) 23. c4 {[%emt 0:02:28]} dxc4 {[%emt 0:00:30]} 24. Bxc4 {[%emt 0:00:01] Strongly threatening Bxg7.} Ne6 {[%emt 0:00:28]} 25. Rad1 {[%emt 0:00:09]} Bc6 {[%emt 0:00:42]} 26. Bxg7 {[%emt 0:01:02] White has more active pieces.} ({Better is} 26. Qc3 $14) 26... Kxg7 {[%emt 0:00:05]} (26... Bxf3 $11 27. gxf3 Nxg7) 27. Nd4 {[%emt 0:00:58]} Nxd4 {[%emt 0:00:15]} 28. Rxd4 {[%emt 0:00:02] Threatens to win with Rf4.} Rd8 {[%emt 0:00:17]} 29. Rf4 {[%emt 0:00:19]} Bd5 {[%emt 0:00:46] Inhibits e6.} 30. Bxd5 {[%emt 0:01:33]} Rxd5 {[%emt 0:00:01]} 31. Qxc7 {[%emt 0:00:02][%cal Oe5e6] aiming for e6!} Qd7 {[%emt 0:00:00] Prevents e6.} 32. Qc3 {[%emt 0:00:33] And now e6+ would win.} Rc8 {[%emt 0:00:34]} 33. Qb4 {[%emt 0:00:17]} Rc2 $2 {[%emt 0:00:09][%mdl 8192]} (33... Qe6 $14) 34. e6 $1 $18 {[%emt 0:00:17]} (34. Qxa3 $2 Rd1 35. h3 (35. Qb4 $2 Re2 $19) 35... Rxe1+ $19) 34... Qd6 {[%emt 0:00:20]} 35. Rxf7+ {[%emt 0:00:22]} (35. exf7 Qxb4 36. Rxb4 Rxa2 $17) 35... Kg8 {[%emt 0:00:05]} 36. Qxd6 $2 {[%emt 0:00:50]} ({Less strong is} 36. Rxb7 Re5 37. e7 (37. Qxd6 $2 Rxe1#) (37. Rb8+ Kg7 $16) 37... Qxb4 38. e8=Q+ (38. e8=R+ Rxe8 39. Rxe8+ Qf8 $16) 38... Rxe8 39. Rxe8+ (39. Rxb4 $2 Rxe1#) 39... Qf8 40. Rxf8+ Kxf8 $16) (36. e7 Re5 37. Rxe5 (37. Qxd6 $2 Rxe1#) (37. e8=R+ Rxe8 38. Rxb7 Rxe1+ 39. Qxe1 Qc6 $11) 37... Qxe5 38. Rf8+ (38. Qxb7 $2 Qe1#) 38... Kg7 39. e8=N+ (39. e8=R $2 Rc1+) 39... Kh6 40. g3 (40. Qxb7 $2 Qe1#)) 36... Rxd6 {[%emt 0:00:01] [#]} 37. Rxb7 $2 {[%emt 0:00:02]} ({Stronger than} 37. Rd7 {[#]} Rxe6 $1 38. Rf1 Rxa2 39. Rxb7 Rb2 $17) (37. e7 $1 $18 {[%cal Re7e8]} Rc8 38. Rf4 (38. e8=R+ Rxe8 39. Rxe8+ Kxf7 $15)) 37... Rxe6 $14 {[%emt 0:00:05][%cal Re6e1][%mdl 64]} 38. Rd1 {[%emt 0:00:03] Threatening mate with Rd8+.} (38. Kf1 $5 {[%cal Re1e6]} Rxe1+ 39. Kxe1 $14) 38... Rd2 {[%emt 0:00:10][%cal Rd2d1][%mdl 64] Prevents Rd8+.} 39. Rc1 {[%emt 0:00:04] Rc8+ would kill now.} (39. Rxd2 $2 Re1#) 39... Rc2 {[%emt 0:00:03][%cal Rc2c1][%mdl 64] Inhibits Rc8+.} 40. Rd1 {[%emt 0:00:04] Intending Rd8+ and mate.} (40. Rxc2 $2 Re1#) 40... Rd2 {[%emt 0:00:01][%mdl 64] Prevents Rd8+. Back Rank.   Weighted Error Value: White=0.41/Black=0.17 (very precise)} 1/2-1/2

[Event "4th Tata Steel India Rapid Women 2022"]
[Site "Kolkota"]
[Date "2022.11.30"]
[Round "6.4"]
[White "Muzychuk, Mariya"]
[Black "Kiolbasa, Oliwia"]
[Result "1-0"]
[ECO "C55"]
[WhiteElo "2528"]
[BlackElo "2406"]
[Annotator "TA"]
[PlyCount "75"]
[EventDate "2022.11.29"]
[EventType "tourn"]
[EventCountry "IND"]
[SourceTitle "playchess.com"]
[Source "ChessBase"]
[SourceQuality "1"]
[TimeControl "900+10"]

{[%evp 13,75,29,34,36,30,33,33,28,33,44,34,38,42,9,11,21,70,54,50,54,54,65,65,57,56,33,62,27,29,26,27,33,66,0,0,0,0,0,0,0,0,-31,0,0,11,1,63,13,33,30,27,8,11,0,39,35,40,40,158,168,1402,1379,1388,1389]} 1. e4 {[%emt 0:00:01]} e5 {[%emt 0:00:02]} 2. Nf3 {[%emt 0:00:02]} Nc6 {[%emt 0:00:02]} 3. Bc4 {[%emt 0:00:01]} Nf6 {[%emt 0:00:04]} 4. d3 {[%emt 0:00:06]} Be7 {[%emt 0:00:03]} 5. O-O {[%emt 0:00:04]} O-O {[%emt 0:00:04]} 6. Re1 {[%emt 0:00:05]} d6 {[%emt 0:00:03]} 7. a4 {[%emt 0:00:02]} Na5 {[%emt 0:00:10] 7...h6 is setting a new trend.} 8. Ba2 {[%emt 0:00:01] C55: Two Knights: 4 d3, 4 d4 exd4 5 e5 and Max Lange Attack.} c5 {[%emt 0:00:03]} 9. c3 {[%emt 0:00:03][%cal Bc2c3,Bc3b4,Bb4b5][%mdl 32]} Nc6 {[%emt 0:00:04]} 10. Na3 {[%emt 0:00:35] White is slightly better.} Be6 {[%emt 0:00:12]} 11. Bxe6 {[%emt 0:00:28]} fxe6 {[%emt 0:00:02]} 12. Bd2 {[%emt 0:00:01] [#]} Nd7 $146 {[%emt 0:05:14]} ({Predecessor:} 12... a6 13. b4 cxb4 14. cxb4 d5 15. Nc2 b5 16. axb5 axb5 17. Rxa8 Qxa8 18. exd5 Nxd5 19. Nxe5 Ncxb4 20. Nxb4 Nxb4 {½-½ (31) Dominguez Perez,L (2752)-Aronian,L (2772) Berlin 2022}) 13. b4 {[%emt 0:00:15]} cxb4 {[%emt 0:00:06]} 14. cxb4 {[%emt 0:00:02]} d5 {[%emt 0:00:01] Against Nc4} (14... a5 $11 {is superior.}) 15. exd5 {[%emt 0:04:02]} exd5 {[%emt 0:00:10]} 16. b5 {[%emt 0:00:14]} Nd4 {[%emt 0:02:11]} 17. Nxd4 {[%emt 0:00:07]} exd4 {[%emt 0:00:01]} 18. Nc2 {[%emt 0:00:17]} Bd6 {[%emt 0:02:50][%cal Od6h2]} 19. Qg4 {[%emt 0:00:58] Strongly threatening Qe6+.} (19. Nxd4 Bxh2+ $1 {[%mdl 512]} 20. Kh1 Rxf2 $1 $17) (19. Qh5 {seems wilder.} Nc5 20. Nxd4 Rf7 21. Nf3) 19... Kh8 {[%emt 0:00:18]} 20. Nxd4 {[%emt 0:03:10] And now Ne6 would win.} (20. Qxd4 $2 Bc5 21. Qxd5 Rxf2 $19) 20... Ne5 {[%emt 0:01:13]} 21. Qh3 {[%emt 0:00:06]} (21. Qg5 {simplifies} Qxg5 22. Bxg5 Nxd3 23. Re2) 21... Qf6 {[%emt 0:00:50]} 22. Rf1 {[%emt 0:00:05]} Rae8 {[%emt 0:02:03]} 23. Kh1 {[%emt 0:01:04]} (23. Rae1 $14) 23... Qg6 $11 {[%emt 0:00:46]} 24. f4 {[%emt 0:03:00]} (24. Rae1 {is interesting.} Bc5 25. f4 Qxd3 26. Bc3) 24... Qxd3 {[%emt 0:00:01]} 25. Qxd3 {[%emt 0:00:21]} Nxd3 {[%emt 0:00:02]} 26. f5 {[%emt 0:00:14]} Be5 {[%emt 0:01:02]} 27. Ra3 {[%emt 0:00:23]} Nc5 {[%emt 0:00:59]} (27... Nb2 $5 {[%cal Re5d4]} 28. Nc2 Bf6 $15) 28. Be3 {[%emt 0:00:11]} Ne4 {[%emt 0:00:23]} 29. Rd3 {[%emt 0:00:44]} Nd6 {[%emt 0:00:37]} (29... Nc5 $11 30. Rdd1 Kg8) 30. Kg1 {[%emt 0:00:18]} (30. Bg1 $14) 30... Kg8 {[%emt 0:00:20]} 31. g4 {[%emt 0:00:19] Black must now prevent Ne6.} Nc4 {[%emt 0:00:07] aiming for ...Nxe3.} 32. Bf2 {[%emt 0:00:25] Ne6 is the strong threat.} ({But not} 32. Ne6 $2 {[#]} Nxe3 $1 33. Rxe3 Bd4 $1 {[%mdl 512]} 34. Nxd4 Rxe3 $19) (32. Bc1 $5 {[%cal Rd4e6]}) 32... Nb2 $1 {[%emt 0:00:12][%csl LRa4,LRd3]} 33. Rd2 {[%emt 0:00:13]} Nxa4 {[%emt 0:00:08]} (33... Nc4 $5 {[%cal Rc4d2]} 34. Rd3 Nb2 $11) 34. Ne6 {[%emt 0:00:05][%cal Od2d5]} Rf7 {[%emt 0:00:02]} 35. Rxd5 {[%emt 0:00:09]} ({Weaker is} 35. Bxa7 b6 36. Rxd5 Bb2 37. Bxb6 Nxb6 $17) 35... Bb8 {[%emt 0:00:14]} ({Better is} 35... Bf6 $14) 36. Bd4 $16 {[%emt 0:00:12] White is more active.} g6 $2 {[%emt 0:00:14]} (36... Bc7 37. Bxa7 b6) 37. Ng5 $18 {[%emt 0:00:33]} Rff8 {[%emt 0:00:11]} 38. f6 {[%emt 0:00:07] Weighted Error Value: White=0.12 (very precise) /Black=0.20 (precise)} 1-0